fUST/lending_fUST_20240521
["ID","MTS","AMOUNT","RATE_DAILY","PERIOD"]
[327570203,1716238248701,-2020.369339,0.00019178,2]
[327570205,1716238248710,-2020.369339,0.00019178,2]
[327570206,1716238248721,-2020.369339,0.00019178,2]
[327570208,1716238248731,-2020.369339,0.00019178,2]
[327570210,1716238248740,-2020.369339,0.00019178,2]
[327570211,1716238248749,-2020.369339,0.00019178,2]
[327570213,1716238248758,-914.84387,0.00019178,2]
[327570214,1716238248767,-914.84387,0.00019178,2]
[327570216,1716238248777,-914.84387,0.00019178,2]
[327570218,1716238248786,-914.84387,0.00019178,2]
[327570219,1716238248795,-914.84387,0.00019178,2]
[327570221,1716238248805,-914.84387,0.00019178,2]
[327570222,1716238248814,-914.84387,0.00019178,2]
[327570224,1716238248823,-323.7097,0.00019178,2]
[327570226,1716238248832,-323.7097,0.00019178,2]
[327570227,1716238248842,-323.7097,0.00019178,2]
[327570229,1716238248851,-323.7097,0.00019178,2]
[327570230,1716238248861,-323.7097,0.00019178,2]
[327570232,1716238248870,-323.7097,0.00019178,2]
[327570234,1716238248880,-323.7097,0.00019178,2]
[327570235,1716238248890,-323.7097,0.00019178,2]
[327570236,1716238248899,-151.0,0.00019178,2]
[327570237,1716238248920,-151.0,0.00019178,2]
[327570238,1716238248939,-151.0,0.00019178,2]
[327570239,1716238248958,-151.0,0.00019178,2]
[327570240,1716238248981,-151.0,0.00019178,2]
[327570241,1716238248996,-151.0,0.00019178,2]
[327570242,1716238249016,-151.0,0.00019178,2]
[327570243,1716238249036,-151.0,0.00019178,2]
[327570244,1716238249056,-151.0,0.00019178,2]
[327570245,1716238249077,-151.0,0.00019178,2]
[327570247,1716238249094,-151.0,0.00019178,2]
[327570250,1716238249114,-151.0,0.00019178,2]
[327570253,1716238249131,-158.55,0.00019178,2]
[327570255,1716238249146,-158.55,0.00019178,2]
[327570258,1716238249163,-158.55,0.00019178,2]
[327570261,1716238249178,-158.55,0.00019178,2]
[327570263,1716238249194,-158.55,0.00019178,2]
[327570266,1716238249208,-158.55,0.00019178,2]
[327570268,1716238249224,-158.55,0.00019178,2]
[327570271,1716238249238,-158.55,0.00019178,2]
[327570274,1716238249255,-161.676935,0.00019178,2]
[327570276,1716238249271,-165.245324,0.00019178,2]
[327570279,1716238249287,-437.7771131,0.00019178,4]
[327570281,1716238249301,-160.911643,0.00019178,2]
[327570284,1716238249316,-622.0345918,0.00019183,2]
[327570287,1716238249331,-151.0,0.00019183,2]
[327570289,1716238249346,-151.0,0.00019183,2]
[327570292,1716238249361,-151.0,0.00019183,2]
[327570294,1716238249376,-166.655198,0.00019183,2]
[327570297,1716238249392,-166.655198,0.00019183,2]
[327570300,1716238249408,-150.0,0.0001962,2]
[327570302,1716238249425,-296.16081658,0.000199,2]
[327570305,1716238249440,-296.16081656,0.000199,2]
[327570307,1716238249457,-296.16081656,0.000199,2]
[327570309,1716238249475,-296.16081656,0.000199,2]
[327570312,1716238249489,-296.16081656,0.000199,2]
[327570314,1716238249505,-483.61478473,0.000199,2]
[327570317,1716238249520,-1012.086279,0.000199,2]
[327570319,1716238249534,-1012.086279,0.000199,2]
[327570320,1716238249548,-7413.7136393,0.0002,2]
[327570321,1716238249562,-12744.15237395,0.0002,5]
[327570322,1716238249578,-246.13188823,0.0002,2]
[327570323,1716238249592,-281.0,0.0002,2]
[327570324,1716238249608,-172.6992898,0.0002,2]
[327570325,1716238249621,-240.40188331,0.0002,2]
[327570326,1716238249636,-286.31997537,0.0002,2]
[327570327,1716238249650,-154.84515485,0.0002,2]
[327570328,1716238249664,-1565.51900701,0.0002,2]
[327570329,1716238249679,-154.89460653,0.0002,2]
[327570330,1716238249693,-168.24814946,0.0002,2]
[327570331,1716238249707,-155.56294082,0.0002,2]
[327570332,1716238249724,-400.0,0.0002,2]
[327570333,1716238249740,-157.48354052,0.0002,2]
[327570334,1716238249754,-154.89402136,0.0002,2]
[327570335,1716238249769,-4692.31037495,0.0002,2]
[327570336,1716238249783,-281.5851467,0.0002,2]
[327570337,1716238249797,-13452.29138414,0.0002,2]
[327570338,1716238249811,-6363.09100263,0.0002,2]
[327570339,1716238249826,-1840.95918805,0.0002,2]
[327570340,1716238249841,-4247.06231658,0.0002,2]
[327570341,1716238249855,-20148.8668669,0.0002,2]
[327570342,1716238250062,-152.83771,0.0002,2]
[327570343,1716238250087,-151.0,0.0002,2]
[327570344,1716238250097,-151.0,0.0002,2]
[327570345,1716238250107,-151.0,0.0002,2]
[327570346,1716238250118,-153.545316,0.0002,2]
[327570347,1716238250128,-151.0,0.0002,2]
[327570348,1716238250138,-151.0,0.0002,2]
[327570349,1716238250148,-151.0,0.0002,2]
[327570350,1716238250158,-33760.63390551,0.0002,2]
[327570351,1716238250167,-151.0,0.0002,2]
[327570352,1716238250177,-151.0,0.0002,2]
[327570353,1716238250186,-151.0,0.0002,2]
[327570354,1716238250196,-166.655198,0.0002,2]
[327570355,1716238250205,-166.655198,0.0002,2]
[327570356,1716238250215,-166.655198,0.0002,2]
[327570357,1716238250230,-166.655198,0.0002,2]
[327570358,1716238250240,-166.655198,0.0002,2]
[327570359,1716238250250,-166.655198,0.0002,2]
[327570360,1716238250260,-435.210354,0.0002,2]
[327570361,1716238250269,-64266.80311865,0.0002,5]
[327570362,1716238250279,-164.981043,0.0002,2]
[327570363,1716238250289,-164.981043,0.0002,2]
[327570364,1716238250298,-164.981043,0.0002,2]
[327570365,1716238250308,-164.981043,0.0002,2]
[327570366,1716238250318,-164.981043,0.0002,2]
[327570367,1716238250327,-164.981043,0.0002,2]
[327570368,1716238250336,-164.981043,0.0002,2]
[327570369,1716238250346,-164.981043,0.0002,2]
[327570370,1716238250355,-165.42775,0.0002,2]
[327570371,1716238250365,-165.42775,0.0002,2]
[327570372,1716238250374,-165.42775,0.0002,2]
[327570373,1716238250384,-165.42775,0.0002,2]
[327570374,1716238250393,-868.844185,0.0002,2]
[327570375,1716238250403,-868.844185,0.0002,2]
[327570376,1716238250418,-868.844185,0.0002,2]
[327570377,1716238250427,-868.844185,0.0002,2]
[327570378,1716238250436,-165.42775,0.0002,2]
[327570379,1716238250446,-165.42775,0.0002,2]
[327570380,1716238250458,-165.42775,0.0002,2]
[327570381,1716238250467,-165.42775,0.0002,2]
[327570382,1716238250479,-868.844185,0.0002,2]
[327570383,1716238250489,-868.844185,0.0002,2]
[327570384,1716238250501,-868.844185,0.0002,2]
[327570385,1716238250510,-868.844185,0.0002,2]
[327570386,1716238250519,-242.603735,0.0002,2]
[327570387,1716238250528,-200.0,0.0002,2]
[327570388,1716238250537,-712.436732,0.0002,2]
[327570389,1716238250546,-712.436732,0.0002,2]
[327570390,1716238250556,-712.436732,0.0002,2]
[327570391,1716238250565,-712.436732,0.0002,2]
[327570392,1716238250574,-712.436732,0.0002,2]
[327570393,1716238250583,-712.436732,0.0002,2]
[327570394,1716238250592,-712.436732,0.0002,2]
[327570395,1716238250602,-712.436732,0.0002,2]
[327570396,1716238250611,-151.0,0.0002,2]
[327570397,1716238250620,-151.0,0.0002,2]
[327570398,1716238250629,-151.0,0.0002,2]
[327570399,1716238250638,-151.0,0.0002,2]
[327570400,1716238250652,-151.0,0.0002,2]
[327570401,1716238250661,-204.2062,0.0002,2]
[327570402,1716238250671,-151.0,0.0002,2]
[327570403,1716238250680,-151.0,0.0002,2]
[327570404,1716238250689,-151.0,0.0002,2]
[327570405,1716238250698,-151.0,0.0002,2]
[327570406,1716238250707,-151.0,0.0002,2]
[327570407,1716238250717,-151.0,0.0002,2]
[327570408,1716238250729,-175.489918,0.0002,2]
[327570409,1716238250738,-151.0,0.0002,2]
[327570410,1716238250747,-218.937112,0.0002,2]
[327570411,1716238250756,-242.725388,0.0002,2]
[327570412,1716238250765,-242.725388,0.0002,2]
[327570413,1716238250775,-242.725388,0.0002,2]
[327570414,1716238250784,-242.725388,0.0002,2]
[327570415,1716238250794,-242.725388,0.0002,2]
[327570416,1716238250803,-242.725388,0.0002,2]
[327570417,1716238250812,-242.725388,0.0002,2]
[327570418,1716238250821,-242.725388,0.0002,2]
[327570419,1716238250831,-151.0,0.0002,2]
[327570420,1716238250839,-232.239224,0.0002,2]
[327570421,1716238250849,-717.36233,0.0002,2]
[327570422,1716238250859,-717.36233,0.0002,2]
[327570424,1716238250868,-717.36233,0.0002,2]
[327570426,1716238250877,-717.36233,0.0002,2]
[327570428,1716238250887,-717.36233,0.0002,2]
[327570430,1716238250896,-717.36233,0.0002,2]
[327570432,1716238250905,-717.36233,0.0002,2]
[327570434,1716238250915,-717.36233,0.0002,2]
[327570436,1716238250924,-1012.086279,0.0002,2]
[327570438,1716238250933,-1012.086279,0.0002,2]
[327570440,1716238250942,-1012.086279,0.0002,2]
[327570442,1716238250951,-1012.086279,0.0002,2]
[327570444,1716238250960,-2000.45717,0.0002,2]
[327570445,1716238250969,-2000.45717,0.0002,2]
[327570447,1716238250980,-2000.45717,0.0002,2]
[327570449,1716238250989,-1012.086279,0.0002,2]
[327570451,1716238250999,-1012.086279,0.0002,2]
[327570453,1716238251008,-2000.45717,0.0002,2]
[327570455,1716238251018,-2000.45717,0.0002,2]
[327570457,1716238251029,-2000.45717,0.0002,2]
[327570459,1716238251040,-2000.45717,0.0002,2]
[327570461,1716238251050,-2000.45717,0.0002,2]
[327570462,1716238251060,-2060.756468,0.0002,2]
[327570464,1716238251070,-2060.756468,0.0002,2]
[327570466,1716238251079,-2060.756468,0.0002,2]
[327570468,1716238251089,-2060.756468,0.0002,2]
[327570470,1716238251099,-2060.756468,0.0002,2]
[327570472,1716238251109,-2060.756468,0.0002,2]
[327570474,1716238251119,-2060.756468,0.0002,2]
[327570477,1716238251128,-2060.75646059,0.0002,2]
[327570478,1716238251137,-151.0,0.0002,2]
[327570480,1716238251146,-151.0,0.0002,2]
[327570483,1716238251156,-151.0,0.0002,2]
[327570484,1716238251166,-151.0,0.0002,2]
[327570486,1716238251175,-204.942711,0.0002,2]
[327570488,1716238251185,-204.942711,0.0002,2]
[327570490,1716238251195,-204.942711,0.0002,2]
[327570493,1716238251204,-204.942711,0.0002,2]
[327570495,1716238251213,-204.942711,0.0002,2]
[327570496,1716238251223,-204.942711,0.0002,2]
[327570498,1716238251233,-204.942711,0.0002,2]
[327570501,1716238251242,-151.0,0.0002,2]
[327570502,1716238251251,-151.0,0.0002,2]
[327570504,1716238251260,-204.94272,0.0002,2]
[327570506,1716238251270,-151.0,0.0002,2]
[327570508,1716238251279,-151.0,0.0002,2]
[327570510,1716238251289,-151.0,0.0002,2]
[327570512,1716238251298,-208.393233,0.0002,2]
[327570514,1716238251307,-1437.896945,0.0002,2]
[327570517,1716238251318,-1437.896945,0.0002,2]
[327570519,1716238251328,-1437.896945,0.0002,2]
[327570521,1716238251337,-1437.896945,0.0002,2]
[327570523,1716238251346,-1437.896945,0.0002,2]
[327570525,1716238251355,-1437.896945,0.0002,2]
[327570527,1716238251364,-1437.896945,0.0002,2]
[327570529,1716238251373,-1437.896951,0.0002,2]
[327570531,1716238251382,-2020.369339,0.0002,2]
[327570533,1716238251391,-2020.369339,0.0002,2]
[327570534,1716238251401,-2020.369339,0.0002,2]
[327570536,1716238251411,-2020.369339,0.0002,2]
[327570538,1716238251420,-2020.369339,0.0002,2]
[327570540,1716238251433,-2020.369339,0.0002,2]
[327570543,1716238251444,-2020.369339,0.0002,2]
[327570544,1716238251454,-2020.369335,0.0002,2]
[327570547,1716238251463,-914.84387,0.0002,2]
[327570548,1716238251473,-914.84387,0.0002,2]
[327570551,1716238251483,-914.84387,0.0002,2]
[327570552,1716238251492,-914.84387,0.0002,2]
[327570554,1716238251503,-914.84387,0.0002,2]
[327570556,1716238251513,-914.84387,0.0002,2]
[327570558,1716238251522,-914.84387,0.0002,2]
[327570560,1716238251531,-914.843867,0.0002,2]
[327570562,1716238251541,-323.7097,0.0002,2]
[327570564,1716238251550,-323.7097,0.0002,2]
[327570566,1716238251560,-323.7097,0.0002,2]
[327570569,1716238251569,-323.7097,0.0002,2]
[327570570,1716238251578,-323.7097,0.0002,2]
[327570573,1716238251588,-323.709691,0.0002,2]
[327570575,1716238251597,-151.0,0.0002,2]
[327570576,1716238251607,-151.0,0.0002,2]
[327570579,1716238251616,-151.0,0.0002,2]
[327570580,1716238251625,-151.0,0.0002,2]
[327570583,1716238251634,-151.0,0.0002,2]
[327570585,1716238251643,-151.0,0.0002,2]
[327570587,1716238251653,-151.0,0.0002,2]
[327570589,1716238251663,-151.0,0.0002,2]
[327570591,1716238251672,-151.0,0.0002,2]
[327570593,1716238251681,-158.55,0.0002,2]
[327570595,1716238251691,-158.55,0.0002,2]
[327570597,1716238251700,-158.55,0.0002,2]
[327570599,1716238251709,-158.55,0.0002,2]
[327570601,1716238251718,-158.55,0.0002,2]
[327570603,1716238251730,-158.55,0.0002,2]
[327570604,1716238251739,-620.10172959,0.00020142,2]
[327570606,1716238251748,-163.0,0.00020296,2]
[327570609,1716238251758,-392.29850007,0.000203,2]
[327570611,1716238251767,-606.5,0.00020395,3]
[327570613,1716238251777,-606.5,0.00020395,2]
[327570615,1716238251787,-502.46,0.00020547,2]
[327570617,1716238251799,-993.835413,0.00020548,2]
[327570619,1716238251809,-3617.37679311,0.0002066,7]
[327570621,1716238251818,-150.0,0.0002086,2]
[327570633,1716238251923,-154.90693415,0.00020912,2]
[327570635,1716238251933,-286.42527182,0.00020912,2]
[327570637,1716238251942,-277.80828402,0.00020912,2]
[327570639,1716238251951,-281.95450089,0.00020912,2]
[327570641,1716238251960,-155.84275179,0.00020912,2]
[327570643,1716238251970,-302.99861558,0.00020912,2]
[327570645,1716238251980,-151.0,0.00020912,2]
[327570647,1716238251990,-151.0,0.00020912,2]
[327570650,1716238252000,-166.655198,0.00020912,2]
[327570652,1716238252009,-166.655198,0.00020912,2]
[327570654,1716238252019,-435.210354,0.00020912,2]
[327570656,1716238252028,-302.00672053,0.00020913,2]
[327570658,1716238252038,-280.0,0.00021,2]
[327570660,1716238252046,-11161.2033826,0.00021,2]
[327570662,1716238252056,-10039.51054753,0.00021,2]
[327570663,1716238252065,-237.28945682,0.00021,2]
[327570666,1716238252074,-197.81785942,0.00021,2]
[327570668,1716238252083,-165.42775,0.00021,2]
[327570669,1716238252092,-165.42775,0.00021,2]
[327570671,1716238252102,-712.436732,0.00021,2]
[327570673,1716238252111,-712.436732,0.00021,2]
[327570675,1716238252120,-151.0,0.00021,2]
[327570677,1716238252129,-151.0,0.00021,2]
[327570680,1716238252139,-242.725388,0.00021,2]
[327570681,1716238252148,-242.725388,0.00021,2]
[327570683,1716238252157,-717.36233,0.00021,2]
[327570686,1716238252168,-717.36233,0.00021,2]
[327570688,1716238252177,-1012.086279,0.00021,2]
[327570690,1716238252186,-1012.086283,0.00021,2]
[327570691,1716238252195,-2000.45717,0.00021,2]
[327570693,1716238252204,-2000.457168,0.00021,2]
[327570695,1716238252214,-620.00508648,0.00021149,2]
[327570698,1716238252226,-151.0,0.00021718,2]
[327570700,1716238252235,-164.981043,0.00021718,2]
[327570702,1716238252244,-164.981043,0.00021718,2]
[327570704,1716238252253,-868.844185,0.00021718,2]
[327570706,1716238252262,-868.844185,0.00021718,2]
[327570708,1716238252271,-400.542585,0.00021918,2]
[327570710,1716238252280,-400.542585,0.00021918,2]
[327570711,1716238252289,-400.542585,0.00021918,2]
[327570713,1716238252299,-400.542585,0.00021918,2]
[327570715,1716238252308,-400.542585,0.00021918,2]
[327570717,1716238252317,-400.542585,0.00021918,2]
[327570719,1716238252326,-400.542585,0.00021918,2]
[327570722,1716238252336,-400.542585,0.00021918,2]
[327570723,1716238252345,-400.542585,0.00021918,2]
[327570726,1716238252355,-400.542585,0.00021918,2]
[327570728,1716238252365,-400.542585,0.00021918,2]
[327570729,1716238252374,-400.542585,0.00021918,2]
[327570731,1716238252383,-400.542585,0.00021918,2]
[327570733,1716238252392,-400.542585,0.00021918,2]
[327570735,1716238252402,-400.542585,0.00021918,2]
[327570738,1716238252415,-400.542585,0.00021918,2]
[327570739,1716238252425,-400.542585,0.00021918,2]
[327570741,1716238252434,-400.542585,0.00021918,2]
[327570743,1716238252444,-11600.2367324,0.00021918,2]
[327570745,1716238252455,-151.0,0.00021918,2]
[327570748,1716238252467,-151.0,0.00021918,2]
[327570749,1716238252479,-151.0,0.00021918,2]
[327570751,1716238252488,-151.0,0.00021918,2]
[327570753,1716238252498,-151.0,0.00021918,2]
[327570755,1716238252508,-151.0,0.00021918,2]
[327570757,1716238252517,-151.0,0.00021918,2]
[327570759,1716238252527,-151.0,0.00021918,2]
[327570761,1716238252536,-151.0,0.00021918,2]
[327570763,1716238252545,-166.666666,0.00021918,2]
[327570766,1716238252555,-292.963531,0.00021918,2]
[327570768,1716238252564,-10000.0,0.00021918,2]
[327570769,1716238252573,-151.0,0.00021918,2]
[327570771,1716238252582,-151.0,0.00021918,2]
[327570773,1716238252591,-166.655198,0.00021918,2]
[327570776,1716238252601,-166.655198,0.00021918,2]
[327570778,1716238252610,-435.210354,0.00021918,2]
[327570779,1716238252620,-165.42775,0.00021918,2]
[327570782,1716238252629,-165.427757,0.00021918,2]
[327570783,1716238252639,-712.436732,0.00021918,2]
[327570785,1716238252648,-712.436736,0.00021918,2]
[327570787,1716238252657,-151.0,0.00021918,2]
[327570789,1716238252666,-151.0,0.00021918,2]
[327570791,1716238252675,-242.725388,0.00021918,2]
[327570793,1716238252684,-242.725392,0.00021918,2]
[327570795,1716238252693,-717.36233,0.00021918,2]
[327570797,1716238252702,-717.36233978,0.00021918,2]
[327570799,1716238252711,-159.70333977,0.00022,2]
[327570801,1716238252720,-171.10393631,0.00022,2]
[327570803,1716238252731,-620.00025432,0.00022207,2]
[327570805,1716238252740,-163.0,0.00022236,3]
[327570807,1716238252749,-3777.60492262,0.000223,6]
[327570809,1716238252758,-166.666666,0.00022431,2]
[327570811,1716238252767,-288.30871517,0.000225,2]
[327570813,1716238252777,-164.981043,0.000225,2]
[327570815,1716238252786,-164.981043,0.000225,2]
[327570817,1716238252796,-868.844185,0.000225,2]
[327570819,1716238252805,-868.844187,0.000225,2]
[327570821,1716238252814,-400.542585,0.000225,2]
[327570823,1716238252824,-400.542577,0.000225,2]
[327570825,1716238252834,-606.5,0.00022551,3]
[327570827,1716238252843,-166.666666,0.00022944,2]
[327570829,1716238252852,-154.81422293,0.00023,2]
[327570831,1716238252863,-7426.98387524,0.00023,2]
[327570833,1716238252872,-151.0,0.00023,2]
[327570835,1716238252881,-151.0,0.00023,2]
[327570837,1716238252890,-166.655198,0.00023,2]
[327570840,1716238252900,-166.655198,0.00023,2]
[327570841,1716238252909,-435.210354,0.00023,2]
[327570843,1716238252918,-151.0,0.00023321,2]
[327570845,1716238252927,-166.666666,0.00023456,2]
[327570847,1716238252936,-166.666666,0.00023969,2]
[327570849,1716238252945,-187.16152448,0.00024,2]
[327570851,1716238252954,-163.0,0.00024176,3]
[327570853,1716238252963,-591.306559,0.00024384,2]
[327570855,1716238252973,-166.666666,0.00024482,2]
[327570857,1716238252982,-150.0,0.00024634,2]
[327570859,1716238252991,-380.0,0.00024658,2]
[327570861,1716238253000,-151.0,0.00024658,2]
[327570863,1716238253010,-151.0,0.00024658,2]
[327570865,1716238253019,-151.0,0.00024658,2]
[327570867,1716238253028,-151.0,0.00024658,2]
[327570869,1716238253037,-151.0,0.00024658,2]
[327570871,1716238253046,-151.0,0.00024658,2]
[327570873,1716238253054,-151.0,0.00024658,2]
[327570875,1716238253063,-151.0,0.00024658,2]
[327570877,1716238253072,-151.0,0.00024658,2]
[327570879,1716238253081,-151.0,0.00024658,2]
[327570881,1716238253091,-151.0,0.00024658,2]
[327570883,1716238253100,-151.0,0.00024658,2]
[327570885,1716238253109,-151.0,0.00024658,2]
[327570887,1716238253119,-151.0,0.00024658,2]
[327570889,1716238253128,-215.948295,0.00024658,2]
[327570891,1716238253137,-606.5,0.00024707,3]
[327570893,1716238253147,-167.4232435,0.00025,2]
[327570895,1716238253156,-154.81422293,0.00025,14]
[327570897,1716238253165,-400.71262343,0.00025,2]
[327570899,1716238253174,-160.0,0.00025,2]
[327570901,1716238253183,-11155.98444672,0.00026,2]
[327570903,1716238253193,-163.0,0.00026116,5]
[327570905,1716238253202,-500.0,0.000263,2]
[327570907,1716238253211,-2044.50263311,0.000266,2]
[327570909,1716238253220,-3565.5653372,0.000266,2]
[327570911,1716238253232,-600.688,0.00026842,2]
[327570913,1716238253241,-220.216,0.00026842,2]
[327570915,1716238253250,-176.153,0.00026842,2]
[327570917,1716238253260,-606.5,0.00026862,5]
[327570918,1716238253270,-590.0,0.000269,2]
[327570921,1716238253280,-5631.69970359,0.00026998,2]
[327570922,1716238253289,-151.0,0.00026998,2]
[327570925,1716238253300,-166.655198,0.00026998,2]
[327570927,1716238253309,-166.655199,0.00026998,2]
[327570928,1716238253318,-435.21036,0.00026998,2]
[327570931,1716238253328,-1002.8310426,0.00027,15]
[327570932,1716238253337,-2000.0,0.00027,2]
[327570935,1716238253347,-1136.44476732,0.0002739,2]
[327570937,1716238253356,-500.0,0.00027397,2]
[327570939,1716238253366,-500.0,0.00027397,2]
[327570941,1716238253376,-500.0,0.00027397,2]
[327570943,1716238253386,-500.0,0.00027397,2]
[327570944,1716238253395,-500.0,0.00027397,2]
[327570946,1716238253405,-500.0,0.00027397,2]
[327570949,1716238253415,-500.0,0.00027397,2]
[327570951,1716238253427,-32.57043346,0.00027397,2]
[327571078,1716238254830,-154.9635035,7.322e-05,2]
[327571080,1716238254839,-230.85037262,7.322e-05,2]
[327571082,1716238254849,-1068.16396917,7.323e-05,2]
[327571084,1716238254862,-2463.76274976,7.323e-05,2]
[327571086,1716238254873,-531.6028881,7.323e-05,2]
[327571088,1716238254884,-6952.2,7.323e-05,2]
[327574047,1716238356325,837.1147557,6.318e-05,2]
[327574049,1716238427870,1869.57114084,7.231e-05,2]
[327574050,1716238435910,684.75161522,7.229e-05,2]
[327574051,1716238443721,285.09281937,7.228e-05,2]
[327574052,1716238447722,230.85037262,7.3e-05,2]
[327574053,1716238449948,154.8915759,7.3e-05,2]
[327574054,1716238452165,937.72772035,7.228e-05,2]
[327574055,1716238467095,250.0,6.305e-05,2]
[327574058,1716238636979,1002.8310426,0.0002,15]
[327574059,1716238637007,11817.70113769,0.0002,15]
[327574060,1716238637876,5000.0,7.136e-05,2]
[327574061,1716238699650,-410.54570505,7.13e-05,2]
[327574062,1716238699776,-9154.79559495,7.13e-05,2]
[327574064,1716238736410,2250.0,6.131e-05,2]
[327574065,1716238736433,9565.3413,6.131e-05,2]
[327574066,1716238736467,2770.2980845,6.131e-05,2]
[327574068,1716238823434,7500.0,7.046e-05,2]
[327574072,1716239005324,1037.17360546,6.953e-05,2]
[327574073,1716239013232,462.82639454,6.951e-05,2]
[327574074,1716239013268,55.13240984,6.951e-05,2]
[327574075,1716239018892,690.328442,6.95e-05,2]
[327574076,1716239018934,254.53914816,6.95e-05,2]
[327574077,1716239018966,430.21246706,6.95e-05,2]
[327574078,1716239021422,569.78753294,6.951e-05,2]
[327574079,1716239109231,1500.0,6.94e-05,2]
[327574080,1716239186971,1403.54337151,6.93e-05,2]
[327574081,1716239189529,186.93199799,6.93e-05,2]
[327574082,1716239190389,331.02680639,6.93e-05,2]
[327574083,1716239193408,261.15058514,6.93e-05,2]
[327574084,1716239194745,230.85037262,6.93e-05,2]
[327574085,1716239198911,285.09281937,6.93e-05,2]
[327574086,1716239202989,1.40404698,6.93e-05,2]
[327574087,1716239206421,2652.24703029,6.861e-05,2]
[327574089,1716239214229,1496.06363769,6.86e-05,2]
[327574090,1716239223021,1156.1833926,6.859e-05,2]
[327574091,1716239223053,3053.48557796,6.859e-05,2]
[327574092,1716239230793,4998.03339784,6.858e-05,2]
[327574093,1716239230823,2500.0,6.858e-05,2]
[327574094,1716239298580,1350.72680674,6.85e-05,2]
[327574095,1716239320341,395.37013077,6.85e-05,2]
[327574096,1716239324803,236.56094657,6.85e-05,2]
[327574097,1716239325954,154.8915759,6.85e-05,2]
[327574098,1716239326283,720.10722881,6.85e-05,2]
[327574099,1716239326343,1043.44234529,6.85e-05,2]
[327574100,1716239326406,835.65147081,6.85e-05,2]
[327574101,1716239327989,263.24949511,6.85e-05,2]
[327574106,1716239365620,2597.95193588,6.846e-05,2]
[327574108,1716239380550,1403.54337151,6.846e-05,2]
[327574109,1716239383597,849.00246642,6.846e-05,2]
[327574110,1716239385087,149.50222619,6.846e-05,2]
[327574118,1716239417782,3500.0,6.774e-05,2]
[327574157,1716239432540,-5834.68073492,6.774e-05,2]
[327574159,1716239432552,-1466.92799344,6.774e-05,2]
[327574161,1716239432561,-523.55614149,6.841e-05,2]
[327574163,1716239432571,-1644.05584323,6.841e-05,2]
[327574181,1716239438604,-241.77765027,6.841e-05,2]
[327574182,1716239438615,-304.6642375,6.842e-05,2]
[327574218,1716239443405,-1095.21612986,6.84e-05,2]
[327574220,1716239443417,-208.95322647,6.842e-05,2]
[327574222,1716239443427,-10510.59464911,6.842e-05,2]
[327574223,1716239443436,-909.82763375,6.843e-05,2]
[327574225,1716239443446,-1581.73856904,6.843e-05,2]
[327574227,1716239443455,-521.4050146,6.843e-05,2]
[327574229,1716239443464,-331.02680639,6.843e-05,2]
[327574231,1716239443475,-452.6212924,6.843e-05,2]
[327574233,1716239443484,-521.4050146,6.843e-05,2]
[327574234,1716239443493,-371.12891802,6.844e-05,2]
[327574235,1716239443502,-158.54914524,6.844e-05,2]
[327574236,1716239443510,-720.10722881,6.844e-05,2]
[327574237,1716239443520,-194.48940853,6.844e-05,2]
[327574238,1716239443529,-236.56094657,6.844e-05,2]